bitfinex/quotes_BTCUSD_20241124
["timestamp","ask_amount","ask_price","bid_price","bid_amount"]
[1732447794134,0.251886,97337.0,97326.0,0.0017176]
[1732447795095,0.34345099,97337.0,97326.0,0.0017176]
[1732447795358,0.251886,97337.0,97326.0,0.0017176]
[1732447796052,0.34330417,97337.0,97326.0,0.0017176]
[1732447796268,0.34330366,97337.0,97326.0,0.0017176]
[1732447796923,0.251886,97337.0,97326.0,0.0017176]
[1732447797343,0.34330366,97337.0,97326.0,0.0017176]
[1732447797555,0.6220951,97337.0,97326.0,0.0017176]
[1732447797830,0.023,97330.0,97326.0,0.0017176]
[1732447798042,0.11777963,97330.0,97326.0,0.0017176]
[1732447801395,0.39487963,97330.0,97326.0,0.0017176]
[1732447801635,0.5716568,97330.0,97326.0,0.0017176]
[1732447802348,0.67367107,97330.0,97326.0,0.0017176]
[1732447802584,0.54977717,97327.0,97326.0,0.0017176]
[1732447802829,1.39514236,97327.0,97326.0,0.0017176]
[1732447803118,0.39977717,97317.0,97286.0,0.000982]
[1732447803371,1.21348202,97317.0,97286.0,0.000982]
[1732447803636,1.36925034,97317.0,97286.0,0.000982]
[1732447803875,0.023,97305.0,97286.0,0.000982]
[1732447805848,0.023,97310.0,97286.0,0.000982]
[1732447806077,0.173,97314.0,97287.0,0.10201427]
[1732447806574,0.173,97314.0,97290.0,0.0815]
[1732447806818,0.173,97314.0,97290.0,0.18351427]
[1732447807115,0.023,97316.0,97293.0,0.02322283]
[1732447807332,0.33951888,97317.0,97290.0,0.0815]
[1732447807333,0.33951888,97317.0,97295.0,0.02322283]
[1732447807569,0.09109539,97326.0,97300.0,0.02322283]
[1732447807793,0.15,97321.0,97300.0,0.10201427]
[1732447808049,0.15,97321.0,97292.0,0.02322283]
[1732447808316,0.15,97321.0,97300.0,0.0009898]
[1732447808572,0.15,97321.0,97295.0,0.02322283]
[1732447808827,0.023,97320.0,97296.0,0.10201427]
[1732447809539,0.023,97321.0,97299.0,0.02322283]
[1732447809760,0.023,97321.0,97299.0,0.1252371]
[1732447810246,0.023,97322.0,97300.0,0.1252371]
[1732447810485,0.023,97323.0,97305.0,0.02322283]
[1732447810752,0.023,97326.0,97306.0,0.1252371]
[1732447811008,0.023,97327.0,97306.0,0.1252371]
[1732447811238,0.023,97329.0,97306.0,0.1252371]
[1732447811452,0.023,97329.0,97306.0,0.1262362]
[1732447817808,0.023,97329.0,97311.0,0.02322283]
[1732447818027,0.023,97329.0,97313.0,0.02322283]
[1732447818237,0.023,97329.0,97313.0,0.1252371]
[1732447818469,0.0017184,97330.0,97328.0,0.02322283]
[1732447818714,0.0017184,97330.0,97329.0,0.14253348]
[1732447818952,0.0017184,97330.0,97329.0,0.0815]
[1732447820146,0.0247184,97330.0,97329.0,0.0815]
[1732447820664,0.0247184,97330.0,97329.0,0.2518371]
[1732447820665,0.0017184,97330.0,97329.0,0.2518371]
[1732447821854,0.0017184,97330.0,97329.0,0.25059737]
[1732447824997,0.0017184,97330.0,97329.0,0.25259737]
[1732447825221,0.0017184,97330.0,97329.0,0.25059737]
[1732447826096,0.001718,97347.0,97346.0,0.02322283]
[1732447826308,0.001718,97347.0,97346.0,0.2538371]
[1732447826749,0.024718,97347.0,97346.0,0.2538371]
[1732447827925,0.023,97346.0,97334.0,0.02322283]
[1732447828146,0.001718,97347.0,97346.0,0.02322283]
[1732447828352,0.024718,97347.0,97346.0,0.17236425]
[1732447828588,0.024718,97347.0,97346.0,0.1713371]
[1732447833425,0.024718,97347.0,97346.0,0.1252371]
[1732447833635,0.024718,97347.0,97342.0,0.02322283]
[1732447833886,0.023,97346.0,97342.0,0.02322283]
[1732447837623,0.023,97346.0,97345.0,0.02322283]
[1732447837855,0.023,97346.0,97345.0,0.1252371]
[1732447840682,0.001718,97347.0,97346.0,0.10382283]
[1732447840895,0.001718,97347.0,97346.0,0.20686426]
[1732447842145,0.001718,97347.0,97346.0,0.2058371]
[1732447842360,0.001718,97347.0,97346.0,0.18261427]
[1732447842564,0.001718,97347.0,97346.0,0.2058371]
[1732447843035,0.024718,97347.0,97346.0,0.2058371]
[1732447843240,0.024618,97347.0,97346.0,0.2058371]
[1732447843458,0.024618,97347.0,97346.0,0.1252371]
[1732447844347,0.024518,97347.0,97346.0,0.1252371]
[1732447847127,0.024418,97347.0,97346.0,0.1252371]
[1732447848017,0.001418,97347.0,97346.0,0.1707371]
[1732447850370,0.001318,97347.0,97346.0,0.1707371]
[1732447850604,0.001218,97347.0,97346.0,0.1707371]
[1732447855577,0.001218,97347.0,97346.0,0.1715954]
[1732447857694,0.001218,97347.0,97346.0,0.3992954]
[1732447861868,0.001218,97347.0,97346.0,0.1260954]
[1732447863768,0.001218,97347.0,97346.0,0.0008583]
[1732447867143,0.001218,97347.0,97346.0,0.1260954]
[1732447871704,0.001218,97347.0,97346.0,0.10287257]
[1732447871915,0.001218,97347.0,97346.0,0.0008583]
[1732447873483,0.19747345,97347.0,97346.0,0.0008583]
[1732447873691,0.105418,97347.0,97346.0,0.0008583]
[1732447873908,0.24351549,97347.0,97346.0,0.0008583]
[1732447874114,0.105418,97347.0,97346.0,0.0008583]
[1732447874366,0.34246193,97347.0,97346.0,0.0008583]
[1732447874620,0.87238428,97347.0,97346.0,0.0008583]
[1732447874965,0.89155303,97347.0,97346.0,0.0008583]
[1732447877432,0.89155303,97347.0,97330.0,0.0008585]
[1732447877433,0.023,97344.0,97330.0,0.0008585]
[1732447877674,0.023,97335.0,97330.0,0.0008585]
[1732447877902,0.01914274,97334.0,97330.0,0.0008585]
[1732447878129,0.023,97335.0,97330.0,0.0008585]
[1732447878130,0.023,97332.0,97330.0,0.0008585]
[1732447878379,0.04214274,97331.0,97330.0,0.0008585]
[1732447878602,0.11830595,97331.0,97330.0,0.0008585]
[1732447879762,0.21864869,97331.0,97330.0,0.0008585]
[1732447880828,0.19950595,97331.0,97330.0,0.0008585]
[1732447881299,0.29135785,97331.0,97330.0,0.0008585]
[1732447881520,0.19950595,97331.0,97330.0,0.0008585]
[1732447882186,0.11830595,97331.0,97330.0,0.0008585]
[1732447883118,0.023,97331.0,97330.0,0.0008585]
[1732447883329,0.023,97342.0,97330.0,0.0008585]
[1732447883553,0.023,97344.0,97330.0,0.0008585]
[1732447887038,0.001218,97347.0,97330.0,0.0008585]
[1732447887530,0.001218,97347.0,97335.0,0.02322283]
[1732447887735,0.001218,97347.0,97335.0,0.1252371]
[1732447887950,0.001218,97347.0,97330.0,0.0008585]
[1732447888407,0.001218,97347.0,97338.0,0.02322283]
[1732447888653,0.001218,97347.0,97343.0,0.02322283]
[1732447888859,0.001218,97347.0,97343.0,0.1252371]
[1732447890395,0.001218,97347.0,97344.0,0.02322283]
[1732447892528,0.001218,97347.0,97337.0,0.02322283]
[1732447892749,0.001218,97347.0,97330.0,0.0008585]
[1732447893191,0.023,97345.0,97330.0,0.0008585]
[1732447893395,0.023,97343.0,97330.0,0.0008585]
[1732447893610,0.023,97345.0,97330.0,0.0008585]
[1732447893611,0.0191266,97342.0,97330.0,0.0008585]
[1732447893854,0.023,97345.0,97330.0,0.0008585]
[1732447897582,0.10201427,97346.0,97330.0,0.0008585]
[1732447897583,0.17677717,97343.0,97330.0,0.0008585]
[1732447897797,0.023,97340.0,97330.0,0.0008585]
[1732447898015,0.21679893,97340.0,97330.0,0.0008585]
[1732447898239,0.023,97335.0,97330.0,0.0008585]
[1732447903908,0.09177297,97332.0,97330.0,0.0008585]
[1732447904119,0.39356441,97331.0,97330.0,0.0008585]
[1732447904336,0.39857166,97331.0,97330.0,0.0008585]
[1732447904769,0.49034122,97331.0,97330.0,0.0008585]
[1732447905202,0.39857166,97331.0,97330.0,0.0008585]
[1732447906056,0.22179449,97331.0,97330.0,0.0008585]
[1732447906265,0.11978022,97331.0,97330.0,0.0008585]
[1732447915560,0.22179449,97331.0,97330.0,0.0008585]
[1732447916981,0.39857166,97331.0,97330.0,0.0008585]
[1732447918646,0.49040566,97331.0,97330.0,0.0008585]
[1732447920748,0.09678022,97331.0,97330.0,0.0008585]
[1732447921003,0.33951888,97338.0,97330.0,0.0008585]
[1732447921004,0.091834,97335.0,97330.0,0.0008585]
[1732447921216,0.091834,97344.0,97331.0,0.047]
[1732447921433,0.138969,97347.0,97331.0,0.047]
[1732447921434,0.091834,97345.0,97331.0,0.047]
[1732447921641,0.091834,97344.0,97331.0,0.047]
[1732447921890,0.001218,97347.0,97331.0,0.047]
[1732447922149,0.093052,97347.0,97331.0,0.047]
[1732447922602,0.023,97345.0,97331.0,0.047]
[1732447922822,0.0935506,97346.0,97331.0,0.047]
[1732447923290,0.023,97344.0,97330.0,0.0008585]
[1732447923507,0.12501427,97344.0,97330.0,0.0008585]
[1732447923912,0.091834,97343.0,97330.0,0.0008585]
[1732447924432,0.12501427,97344.0,97330.0,0.0008585]
[1732447924433,0.091834,97342.0,97330.0,0.0008585]
[1732447924635,0.091834,97340.0,97330.0,0.0008585]
[1732447924863,0.091834,97339.0,97330.0,0.0008585]
[1732447925358,0.091834,97340.0,97330.0,0.0008585]
[1732447925876,0.091834,97339.0,97330.0,0.0008585]
[1732447926110,0.091834,97338.0,97330.0,0.0008585]
[1732447926335,0.091834,97337.0,97330.0,0.0008585]
[1732447927036,0.10201427,97336.0,97330.0,0.0008585]
[1732447927266,0.19977717,97335.0,97330.0,0.0008585]
[1732447927503,0.023,97331.0,97330.0,0.0008585]
[1732447927741,0.35969058,97331.0,97330.0,0.0008585]
[1732447927975,0.56143966,97331.0,97330.0,0.0008585]
[1732447929613,0.56143966,97331.0,97307.0,0.1296999]
[1732447929614,0.023,97329.0,97307.0,0.1296999]
[1732447929856,0.09192237,97326.0,97307.0,0.1296999]
[1732447930297,0.09192237,97327.0,97307.0,0.1296999]
[1732447930976,0.09192237,97328.0,97307.0,0.1296999]
[1732447931235,0.11492237,97329.0,97307.0,0.1296999]
[1732447931499,0.023,97329.0,97307.0,0.1296999]
[1732447931741,0.11490059,97329.0,97307.0,0.1296999]
[1732447932436,0.023,97329.0,97307.0,0.1296999]
[1732447933611,0.11488981,97329.0,97307.0,0.1296999]
[1732447934083,0.023,97329.0,97307.0,0.1296999]
[1732447934345,0.1508705,97330.0,97316.0,0.02322283]
[1732447934568,0.1508705,97330.0,97317.0,0.1212]
[1732447935898,0.1508705,97330.0,97316.0,0.02322283]
[1732447935899,0.1508705,97330.0,97318.0,0.1212]
[1732447936114,0.1508705,97330.0,97316.0,0.02322283]
[1732447936115,0.1508705,97330.0,97319.0,0.1212]
[1732447936335,0.1508705,97330.0,97323.0,0.02322283]
[1732447936556,0.1508705,97330.0,97324.0,0.1212]
[1732447936771,0.1508705,97330.0,97325.0,0.075]
[1732447936980,0.1508705,97330.0,97329.0,0.02322283]
[1732447937215,0.1508705,97330.0,97329.0,0.2464371]
[1732447937475,0.1508705,97330.0,97329.0,0.3964371]
[1732447945279,0.1508705,97330.0,97329.0,0.40284213]
[1732447947267,0.1508705,97330.0,97329.0,0.3964371]
[1732447947698,0.1525875,97330.0,97329.0,0.3964371]
[1732447952463,0.1525875,97330.0,97329.0,0.37321427]
[1732447952694,0.1525875,97330.0,97327.0,0.03335021]
[1732447952920,0.1525875,97330.0,97316.0,0.0008585]
[1732447954744,0.023,97329.0,97316.0,0.0008585]
[1732447955188,0.1525875,97330.0,97316.0,0.0008585]
[1732447955420,0.023,97329.0,97316.0,0.0008585]
[1732447956332,0.11484649,97329.0,97316.0,0.0008585]
[1732447957015,0.023,97327.0,97316.0,0.0008585]
[1732447957463,0.023,97328.0,97316.0,0.0008585]
[1732447957717,0.023,97329.0,97316.0,0.0008585]
[1732447960723,0.11471843,97327.0,97316.0,0.0008585]
[1732447960936,0.023,97325.0,97316.0,0.0008585]
[1732447961166,0.023,97323.0,97316.0,0.0008585]
[1732447961395,0.09171843,97322.0,97316.0,0.0008585]
[1732447961637,0.12501427,97323.0,97316.0,0.0008585]
[1732447961866,0.023,97321.0,97316.0,0.0008585]
[1732447968672,0.023,97326.0,97316.0,0.0008585]
[1732447969092,0.023,97324.0,97316.0,0.0008585]
[1732447969308,0.023,97321.0,97316.0,0.0008585]
[1732447969535,0.10201427,97320.0,97316.0,0.0008585]
[1732447969775,0.0995,97317.0,97316.0,0.0008585]
[1732447969988,0.56307338,97317.0,97316.0,0.0008585]
[1732447970221,0.17677717,97315.0,97307.0,0.0008583]
[1732447970507,0.09156028,97312.0,97307.0,0.0008583]
[1732447970721,0.12501427,97311.0,97307.0,0.0008583]
[1732447970960,0.12501427,97311.0,97306.0,0.00018384]
[1732447972209,0.12501427,97311.0,97307.0,0.0008585]
[1732447974772,0.03,97310.0,97307.0,0.0008585]
[1732447974997,0.053,97308.0,97307.0,0.0008585]
[1732447975228,0.25152229,97308.0,97307.0,0.0008585]
[1732447976170,0.14950802,97308.0,97307.0,0.0008585]
[1732447980563,0.22600802,97308.0,97307.0,0.0008585]
[1732447980779,0.32802229,97308.0,97307.0,0.0008585]
[1732447983542,0.50479946,97308.0,97307.0,0.0008585]
[1732447984615,0.53947932,97308.0,97307.0,0.0008585]
[1732447985274,0.03,97301.0,97284.0,0.0008585]
[1732447985505,0.053,97298.0,97284.0,0.0008585]
[1732447985743,0.03,97294.0,97284.0,0.0008585]
[1732447985968,0.03,97292.0,97284.0,0.0008585]
[1732447986418,0.03,97290.0,97284.0,0.0008585]
[1732447986856,0.03,97289.0,97284.0,0.0008585]
[1732447987342,0.023,97286.0,97284.0,0.0008585]
[1732447987579,0.03,97285.0,97284.0,0.0008585]
[1732447987807,0.14757202,97285.0,97284.0,0.0008585]
[1732447988486,0.053,97285.0,97284.0,0.0008585]
[1732447989192,0.053,97285.0,97260.0,0.80291183]
[1732447989420,0.03,97281.0,97261.0,0.10201427]
[1732447989661,0.03102801,97280.0,97265.0,0.0009963]
[1732447989853,0.03,97276.0,97261.0,0.10201427]
[1732447990137,0.00102801,97275.0,97261.0,0.10201427]
[1732447990614,0.03102801,97275.0,97261.0,0.10201427]
[1732447991670,0.03,97274.0,97261.0,0.10304232]
[1732447992400,0.03,97274.0,97262.0,0.1254]
[1732447992627,0.00102801,97283.0,97263.0,0.10201427]
[1732447992628,0.03,97273.0,97263.0,0.10201427]
[1732447993857,0.03,97272.0,97263.0,0.10201427]
[1732447994895,0.03,97271.0,97263.0,0.10201427]
[1732447995797,0.00102801,97290.0,97262.0,0.1254]
[1732447995798,0.03,97270.0,97262.0,0.1254]
[1732447996033,0.03,97270.0,97262.0,0.22741427]
[1732447996771,0.03,97286.0,97263.0,0.0008583]
[1732447997002,0.03,97284.0,97263.0,0.0008583]
[1732447997268,0.00102801,97283.0,97263.0,0.0008583]
[1732447998236,0.03,97286.0,97267.0,0.0785]
[1732447998490,0.03,97286.0,97268.0,0.10304222]
[1732447998724,0.03,97294.0,97269.0,0.1254]
[1732447998977,0.03,97294.0,97270.0,0.10304221]
[1732447998978,0.00102801,97293.0,97270.0,0.10304221]
[1732447999219,0.03,97292.0,97271.0,0.0785]
[1732447999455,0.03,97292.0,97265.0,0.15]
[1732447999456,0.03,97292.0,97275.0,0.0785]
[1732447999671,0.03,97292.0,97277.0,0.0785]
[1732447999892,0.03,97291.0,97278.0,0.10304213]
[1732448000827,0.03,97290.0,97278.0,0.10304213]
[1732448001966,0.03,97289.0,97278.0,0.10304213]
[1732448002430,0.03,97289.0,97278.0,0.10201427]
[1732448002911,0.00102801,97295.0,97278.0,0.10201427]
[1732448002912,0.03,97288.0,97278.0,0.13606315]
[1732448004090,0.03,97287.0,97278.0,0.13606315]
[1732448004536,0.03,97287.0,97278.0,0.13478511]
[1732448004762,0.03,97287.0,97278.0,0.13351154]
[1732448004976,0.03102801,97295.0,97278.0,0.13236327]
[1732448007192,0.03102801,97295.0,97278.0,0.13339113]
[1732448007412,0.03,97295.0,97278.0,0.13339113]
[1732448008275,0.03102801,97295.0,97278.0,0.13339113]
[1732448008504,0.03,97294.0,97278.0,0.13339113]
[1732448008774,0.03,97294.0,97279.0,0.00102786]
[1732448009087,0.03,97294.0,97280.0,0.10201427]
[1732448009321,0.03,97294.0,97281.0,0.1303]
[1732448009570,0.03,97293.0,97282.0,0.10201427]
[1732448010291,0.03,97291.0,97282.0,0.10206438]
[1732448010519,0.053,97286.0,97282.0,0.10206438]
[1732448010740,0.0017174,97295.0,97282.0,0.10206438]
[1732448010741,0.03,97284.0,97282.0,0.10206438]
[1732448012735,0.053,97283.0,97282.0,5.011e-05]
[1732448012948,0.053,97283.0,97282.0,0.10309228]
[1732448013182,0.053,97283.0,97282.0,0.10206438]
[1732448014105,0.053,97283.0,97282.0,5.011e-05]
[1732448018890,0.053,97280.0,97268.0,0.00102794]
[1732448019122,0.053,97280.0,97270.0,0.15]
[1732448019338,0.053,97280.0,97271.0,0.10304221]
[1732448019562,0.053,97280.0,97272.0,0.14993619]
[1732448019746,0.053,97280.0,97273.0,0.10201427]
[1732448021569,0.053,97280.0,97274.0,0.15]
[1732448021785,0.053,97280.0,97274.0,0.25201427]
[1732448023867,0.053,97280.0,97273.0,0.0008586]
[1732448024118,0.00102801,97279.0,97273.0,0.0008586]
[1732448024577,0.053,97280.0,97274.0,0.10201427]
[1732448024816,0.1341,97280.0,97274.0,0.10304229]
[1732448025052,0.1341,97280.0,97274.0,0.10201427]
[1732448027177,0.1341,97280.0,97274.0,0.10025678]
[1732448028724,0.1341,97280.0,97274.0,0.09899306]
[1732448029393,0.1341,97280.0,97273.0,0.0008586]
[1732448029629,0.00102801,97279.0,97273.0,0.0008586]
[1732448029890,0.023,97278.0,97273.0,0.0008586]
[1732448030119,0.00102801,97277.0,97273.0,0.0008586]
[1732448038951,0.00102801,97277.0,97273.0,0.00599877]
[1732448040477,0.053,97276.0,97273.0,0.00599877]
[1732448040737,0.053,97274.0,97273.0,0.00599877]
[1732448040964,0.14730865,97274.0,97273.0,0.00599877]
[1732448041446,0.23906989,97274.0,97273.0,0.00599877]
[1732448041673,0.14628064,97274.0,97273.0,0.00599877]
[1732448041898,0.14730865,97274.0,97273.0,0.00599877]
[1732448045804,0.14628064,97274.0,97273.0,0.00599877]
[1732448049489,0.12328064,97274.0,97273.0,0.00599877]
[1732448049979,0.03,97274.0,97273.0,0.10801304]
[1732448050209,0.03,97274.0,97273.0,0.30611304]
[1732448050437,0.03,97274.0,97273.0,0.38581304]
[1732448051188,0.03,97274.0,97273.0,0.38453891]
[1732448051445,0.03,97274.0,97273.0,0.38275005]
[1732448051903,0.03,97274.0,97273.0,0.38269676]
[1732448054076,0.03,97274.0,97273.0,0.38910519]
[1732448056027,0.0017172,97277.0,97274.0,0.15]
[1732448056254,0.0017172,97277.0,97276.0,0.15]
[1732448056477,0.0017172,97277.0,97276.0,0.2584227]
[1732448056987,0.0017172,97277.0,97276.0,0.25201427]
[1732448060050,0.0017172,97277.0,97273.0,0.00374109]
[1732448061248,0.023,97274.0,97273.0,0.00374109]
[1732448061477,0.05402801,97274.0,97273.0,0.00374109]
[1732448061712,0.15378048,97274.0,97273.0,0.00374109]
[1732448061948,0.23598048,97274.0,97273.0,0.00374109]
[1732448062188,0.1352,97274.0,97273.0,0.00374109]
[1732448062422,0.13622801,97274.0,97273.0,0.00374109]
[1732448063116,0.23598048,97274.0,97273.0,0.00374109]
[1732448063349,0.23495247,97274.0,97273.0,0.00374109]
[1732448063571,0.32664292,97274.0,97273.0,0.00374109]
[1732448063807,0.23495247,97274.0,97273.0,0.00374109]
[1732448064789,0.33696674,97274.0,97273.0,0.00374109]
[1732448065728,0.72260896,97274.0,97273.0,0.00374109]
[1732448065963,0.90598987,97274.0,97273.0,0.00374109]
[1732448066193,0.72260896,97274.0,97273.0,0.00374109]
[1732448066921,0.03,97270.0,97263.0,0.0008583]
[1732448067145,0.22654243,97264.0,97263.0,0.0008583]
[1732448067378,0.32596631,97264.0,97263.0,0.0008583]
[1732448067611,0.23432388,97264.0,97263.0,0.0008583]
[1732448068068,0.33633815,97264.0,97263.0,0.0008583]
[1732448068291,0.47528058,97264.0,97263.0,0.0008583]
[1732448068529,0.38363815,97264.0,97263.0,0.0008583]
[1732448068757,0.47528058,97264.0,97263.0,0.0008583]
[1732448068998,0.38363815,97264.0,97263.0,0.0008583]
[1732448069227,0.5211018,97264.0,97263.0,0.0008583]
[1732448069469,0.38363815,97264.0,97263.0,0.0008583]
[1732448069735,0.5211018,97264.0,97263.0,0.0008583]
[1732448070416,0.38363815,97264.0,97263.0,0.0008583]
[1732448071336,0.42608843,97264.0,97263.0,0.0008583]
[1732448071561,0.51763175,97264.0,97263.0,0.0008583]
[1732448072253,0.42608843,97264.0,97263.0,0.0008583]
[1732448072462,0.51761088,97264.0,97263.0,0.0008583]
[1732448072692,0.42608843,97264.0,97263.0,0.0008583]
[1732448074544,0.51757954,97264.0,97263.0,0.0008583]
[1732448075568,0.42608843,97264.0,97263.0,0.0008583]
[1732448075986,0.38363815,97264.0,97263.0,0.0008583]
[1732448076410,0.21132388,97264.0,97263.0,0.0008583]
[1732448076622,0.12942388,97264.0,97263.0,0.0008583]
[1732448077675,0.15242388,97264.0,97263.0,0.0008583]
[1732448078367,0.23432388,97264.0,97263.0,0.0008583]
[1732448078578,0.33633815,97264.0,97263.0,0.0008583]
[1732448080354,0.38363815,97264.0,97263.0,0.0008583]
[1732448081701,0.67510428,97264.0,97263.0,0.0008583]
[1732448081913,0.03,97261.0,97260.0,0.29162493]
[1732448082132,0.15604228,97261.0,97260.0,0.29162493]
[1732448082340,0.25080269,97261.0,97260.0,0.29162493]
[1732448082554,0.24977468,97261.0,97260.0,0.29162493]
[1732448087439,0.44977468,97261.0,97260.0,0.29162493]
[1732448087659,0.54774168,97261.0,97260.0,0.29162493]
[1732448087873,0.58840126,97261.0,97260.0,0.29162493]
[1732448088084,0.59040126,97261.0,97260.0,0.29162493]
[1732448088335,0.58840126,97261.0,97260.0,0.29162493]
[1732448089940,0.61894788,97261.0,97260.0,0.29162493]
[1732448090464,0.58840126,97261.0,97260.0,0.29162493]
[1732448092305,0.60896591,97261.0,97260.0,0.29162493]
[1732448092524,0.60901173,97261.0,97260.0,0.29162493]
[1732448093700,0.58989891,97261.0,97260.0,0.29162493]
[1732448094177,0.59161631,97261.0,97260.0,0.29162493]
[1732448094636,0.61073676,97261.0,97260.0,0.29162493]
[1732448096953,0.03,97252.0,97238.0,0.000859]
[1732448097209,0.15216273,97251.0,97238.0,0.000859]
[1732448097668,0.053,97249.0,97238.0,0.000859]
[1732448097951,0.27266716,97249.0,97238.0,0.000859]
[1732448098193,0.27163915,97249.0,97238.0,0.000859]
[1732448098418,0.35053915,97249.0,97238.0,0.000859]
[1732448098887,0.39673915,97249.0,97238.0,0.000859]
[1732448099333,0.4383492,97249.0,97238.0,0.000859]
[1732448100236,0.3921492,97249.0,97238.0,0.000859]
[1732448100458,0.3132492,97249.0,97238.0,0.000859]
[1732448100678,0.29412875,97249.0,97238.0,0.000859]
[1732448101858,0.27896463,97249.0,97238.0,0.000859]
[1732448104691,0.29809362,97249.0,97238.0,0.000859]
[1732448104929,0.49809362,97249.0,97238.0,0.000859]
[1732448106122,0.49981122,97249.0,97238.0,0.000859]
[1732448106632,0.91616357,97249.0,97238.0,0.000859]
[1732448107574,1.29803668,97249.0,97238.0,0.000859]
[1732448107811,1.27891261,97249.0,97238.0,0.000859]
[1732448108049,0.23783588,97239.0,97238.0,0.000859]
[1732448108304,0.85094689,97239.0,97238.0,0.000859]
[1732448108759,0.89814689,97239.0,97238.0,0.000859]
[1732448108983,1.24814689,97239.0,97238.0,0.000859]
[1732448109254,1.55710483,97239.0,97238.0,0.000859]
[1732448109507,1.31127228,97239.0,97238.0,0.000859]
[1732448109988,1.30927228,97239.0,97238.0,0.000859]
[1732448110214,1.30927228,97239.0,97238.0,0.00081168]
[1732448110670,1.28000882,97239.0,97238.0,0.00081168]
[1732448111141,1.3219402,97239.0,97238.0,0.00081168]
[1732448111943,0.2,97224.0,97204.0,0.0765]
[1732448112168,0.03783588,97220.0,97209.0,0.00076344]
[1732448112407,0.01483588,97216.0,97209.0,0.00076344]
[1732448112637,0.11787816,97215.0,97209.0,0.00076344]
[1732448113573,0.01586389,97214.0,97210.0,0.0477]
[1732448113809,0.01483588,97214.0,97211.0,0.0765]
[1732448114742,0.01483588,97213.0,97211.0,0.0765]
[1732448115668,0.01483588,97212.0,97211.0,0.0765]
[1732448116144,0.01483588,97212.0,97209.0,0.00076344]
[1732448116372,0.00102801,97211.0,97209.0,0.00076344]
[1732448116827,0.01586389,97211.0,97209.0,0.00076344]
[1732448117781,0.00102801,97211.0,97209.0,0.00076344]
[1732448118004,0.01483588,97220.0,97209.0,0.00076344]
[1732448118260,0.01483588,97218.0,97209.0,0.00076344]
[1732448118516,0.01483588,97216.0,97209.0,0.00076344]
[1732448118738,0.2,97225.0,97209.0,0.00076344]
[1732448118739,0.01483588,97214.0,97209.0,0.00076344]
[1732448118972,0.24157295,97225.0,97209.0,0.00076344]
[1732448118973,0.01483588,97212.0,97209.0,0.00076344]
[1732448119201,0.00102801,97211.0,97209.0,0.00076344]
[1732448120799,0.01483588,97211.0,97210.0,0.1242]
[1732448125334,0.01483588,97211.0,97209.0,0.00076344]
[1732448125781,0.01483588,97210.0,97209.0,0.00076344]
[1732448126698,0.01483588,97210.0,97209.0,0.04916344]
[1732448126927,0.01483588,97210.0,97209.0,0.13146344]
[1732448129946,0.01483588,97210.0,97209.0,0.04916344]
[1732448130406,0.01483588,97210.0,97209.0,0.00076344]
[1732448130636,0.11243501,97210.0,97209.0,0.00076344]
[1732448132026,0.11346302,97210.0,97209.0,0.00076344]
[1732448133266,0.11243501,97210.0,97209.0,0.00076344]
[1732448135600,0.13154216,97210.0,97209.0,0.00076344]
[1732448136057,0.11243501,97210.0,97209.0,0.00076344]
[1732448136305,0.13154339,97210.0,97209.0,0.00076344]
[1732448138403,0.11243501,97210.0,97209.0,0.00076344]
[1732448138639,0.13258348,97210.0,97209.0,0.00076344]
[1732448140050,0.11346302,97210.0,97209.0,0.00076344]
[1732448140967,0.13258299,97210.0,97209.0,0.00076344]
[1732448141199,0.23459726,97210.0,97209.0,0.00076344]
[1732448141434,0.23356925,97210.0,97209.0,0.00076344]
[1732448141894,0.13155322,97210.0,97209.0,0.00076344]
[1732448142126,0.13258123,97210.0,97209.0,0.00076344]
[1732448142362,0.13155322,97210.0,97209.0,0.00076344]
[1732448144199,0.21075322,97210.0,97209.0,0.00076344]
[1732448144428,0.21178123,97210.0,97209.0,0.00076344]
[1732448145343,0.21177954,97210.0,97209.0,0.00076344]
[1732448145571,0.21075153,97210.0,97209.0,0.00076344]
[1732448145798,0.2107498,97210.0,97209.0,0.00076344]
[1732448146248,0.1315498,97210.0,97209.0,0.00076344]
[1732448146940,0.12239501,97210.0,97209.0,0.00076344]
[1732448153673,0.12342302,97210.0,97209.0,0.00076344]
[1732448155025,0.14253675,97210.0,97209.0,0.00076344]
[1732448155248,0.23420566,97210.0,97209.0,0.00076344]
[1732448155470,0.23317765,97210.0,97209.0,0.00076344]
[1732448155702,0.21406392,97210.0,97209.0,0.00076344]
[1732448155927,0.28004026,97210.0,97209.0,0.00076344]
[1732448156154,0.25989838,97210.0,97209.0,0.00076344]
[1732448156457,0.19789501,97210.0,97209.0,0.00076344]
[1732448156662,0.19892302,97210.0,97209.0,0.00076344]
[1732448157167,0.35562066,97210.0,97209.0,0.00076344]
[1732448157395,0.21700782,97210.0,97209.0,0.00076344]
[1732448157607,0.21803583,97210.0,97209.0,0.00076344]
[1732448157790,0.35562066,97210.0,97209.0,0.00076344]
[1732448158067,0.35459265,97210.0,97209.0,0.00076344]
[1732448158574,0.55555193,97210.0,97209.0,0.00076344]
[1732448158801,0.21700782,97210.0,97209.0,0.00076344]
[1732448159037,0.21803583,97210.0,97209.0,0.00076344]
[1732448159516,0.35558351,97210.0,97209.0,0.00076344]
[1732448159773,0.35455849,97210.0,97209.0,0.00076344]
[1732448160008,0.33544568,97210.0,97209.0,0.00076344]
[1732448160248,0.19789501,97210.0,97209.0,0.00076344]
[1732448160469,0.19892302,97210.0,97209.0,0.00076344]
[1732448162293,0.12342302,97210.0,97209.0,0.00076344]
[1732448162746,0.21511873,97210.0,97209.0,0.00076344]
[1732448163470,0.21511876,97210.0,97209.0,0.00076344]
[1732448164422,0.12342302,97210.0,97209.0,0.10076344]
[1732448165163,0.2151128,97210.0,97209.0,0.10076344]
[1732448165408,0.12342302,97210.0,97209.0,0.10076344]
[1732448165878,0.2151128,97210.0,97209.0,0.10076344]
[1732448166105,0.12342302,97210.0,97209.0,0.10076344]
[1732448166548,0.12239501,97210.0,97209.0,0.10076344]
[1732448168209,0.12342302,97210.0,97209.0,0.10076344]
[1732448168455,0.12342302,97210.0,97209.0,0.10115944]
[1732448168683,0.21511172,97210.0,97209.0,0.10115944]
[1732448169128,0.12342302,97210.0,97209.0,0.10115944]
[1732448170100,0.14254487,97210.0,97209.0,0.10115944]
[1732448170827,0.2342477,97210.0,97209.0,0.10115944]
[1732448171062,0.21409784,97210.0,97209.0,0.10115944]